[Event "Titled Tuesday Blitz December 06 Early 2022"]
[White "Tasev, Dejan"]
[Black "Ibarra Jerez, Jose Carlos"]
[WhiteFideId "936618"]
[BlackFideId "2226332"]
[WhiteElo "2253"]
[BlackElo "2638"]
[Result "1-0"]
[Round "05"]
[TimeControl "180+1"]
[Date "2022.12.07"]
[WhiteClock "0:00:15"]
[BlackClock "0:00:14"]

1. e4 {[%clk 0:03:00]}  c5 {[%clk 0:02:59]} 2. Nf3 {[%clk 0:03:00]}  e6 {[%clk 0:03:00]} 3. Nc3 {[%clk 0:03:00]}  a6 {[%clk 0:03:00]} 4. g3 {[%clk 0:03:00]}  b5 {[%clk 0:03:00]} 5. d3 {[%clk 0:02:59]}  Bb7 {[%clk 0:03:00]} 6. Bg2 {[%clk 0:02:59]}  d6 {[%clk 0:03:00]} 7. a4 {[%clk 0:02:58]}  b4 {[%clk 0:03:00]} 8. Nb1 {[%clk 0:02:58]}  Nf6 {[%clk 0:03:01]} 9. b3 {[%clk 0:02:57]}  Nbd7 {[%clk 0:03:01]} 10. Bb2 {[%clk 0:02:57]}  g6 {[%clk 0:03:00]} 11. Nbd2 {[%clk 0:02:58]}  Bg7 {[%clk 0:03:00]} 12. O-O {[%clk 0:02:58]}  O-O {[%clk 0:03:00]} 13. Re1 {[%clk 0:02:57]}  Re8 {[%clk 0:02:59]} 14. Nc4 {[%clk 0:02:56]}  Qc7 {[%clk 0:02:58]} 15. e5 {[%clk 0:02:47]}  dxe5 {[%clk 0:02:57]} 16. Nfxe5 {[%clk 0:02:46]}  Bxg2 {[%clk 0:02:57]} 17. Kxg2 {[%clk 0:02:46]}  Nd5 {[%clk 0:02:51]} 18. f4 {[%clk 0:02:37]}  Rad8 {[%clk 0:02:50]} 19. Qf3 {[%clk 0:02:36]}  N7f6 {[%clk 0:02:45]} 20. Re2 {[%clk 0:02:30]}  Nc3 {[%clk 0:02:45]} 21. Bxc3 {[%clk 0:02:29]}  bxc3 {[%clk 0:02:46]} 22. Rae1 {[%clk 0:02:11]}  Nd5 {[%clk 0:02:45]} 23. h4 {[%clk 0:02:08]}  Ne7 {[%clk 0:02:29]} 24. h5 {[%clk 0:02:05]}  Nf5 {[%clk 0:02:28]} 25. hxg6 {[%clk 0:02:05]}  hxg6 {[%clk 0:02:26]} 26. Qe4 {[%clk 0:01:41]}  Nd4 {[%clk 0:02:21]} 27. Rf2 {[%clk 0:01:39]}  Rd5 {[%clk 0:02:11]} 28. Nf3 {[%clk 0:01:31]}  Red8 {[%clk 0:02:04]} 29. Rh1 {[%clk 0:01:26]}  Qb7 {[%clk 0:01:58]} 30. Nxd4 {[%clk 0:01:20]}  Bxd4 {[%clk 0:01:54]} 31. Re2 {[%clk 0:01:16]}  Kg7 {[%clk 0:01:53]} 32. Ree1 {[%clk 0:01:08]}  Qa8 {[%clk 0:01:47]} 33. Nb6 {[%clk 0:01:04]}  Qc6 {[%clk 0:01:38]} 34. Nxd5 {[%clk 0:01:04]}  Rxd5 {[%clk 0:01:37]} 35. Rh3 {[%clk 0:00:59]}  Kf8 {[%clk 0:01:33]} 36. a5 {[%clk 0:00:55]}  Ke7 {[%clk 0:01:32]} 37. Ra1 {[%clk 0:00:55]}  Qd6 {[%clk 0:01:15]} 38. Rh7 {[%clk 0:00:51]}  Kf8 {[%clk 0:01:12]} 39. Ra4 {[%clk 0:00:38]}  Kg8 {[%clk 0:01:11]} 40. Rh1 {[%clk 0:00:37]}  Kg7 {[%clk 0:01:06]} 41. Rc4 {[%clk 0:00:36]}  f5 {[%clk 0:01:05]} 42. Qf3 {[%clk 0:00:34]}  Qc7 {[%clk 0:00:59]} 43. b4 {[%clk 0:00:33]}  Qd7 {[%clk 0:00:49]} 44. bxc5 {[%clk 0:00:33]}  Bxc5 {[%clk 0:00:50]} 45. Re1 {[%clk 0:00:32]}  Bd4 {[%clk 0:00:47]} 46. Rb1 {[%clk 0:00:29]}  Bf6 {[%clk 0:00:40]} 47. Rcb4 {[%clk 0:00:25]}  Bd8 {[%clk 0:00:34]} 48. Rb7 {[%clk 0:00:25]}  Bc7 {[%clk 0:00:34]} 49. R1b6 {[%clk 0:00:22]}  Kh6 {[%clk 0:00:22]} 50. Rxa6 {[%clk 0:00:20]}  Rc5 {[%clk 0:00:19]} 51. Raa7 {[%clk 0:00:19]}  Qd6 {[%clk 0:00:17]} 52. a6 {[%clk 0:00:18]}  e5 {[%clk 0:00:17]} 53. fxe5 {[%clk 0:00:18]}  Rxe5 {[%clk 0:00:16]} 54. Rxc7 {[%clk 0:00:16]}  g5 {[%clk 0:00:14]} 55. Rc6 {[%clk 0:00:15]} 1-0


[Site "https://www.chess.com"]

[Event "Titled Tuesday Blitz December 06 Early 2022"]
[White "Tsatsalashvili, Keti"]
[Black "Ismayil, Malak"]
[WhiteFideId "13603434"]
[BlackFideId "13412604"]
[WhiteElo "2220"]
[BlackElo "1880"]
[Result "0-1"]
[Round "05"]
[TimeControl "180+1"]
[Date "2022.12.07"]
[WhiteClock "0:00:08"]
[BlackClock "0:00:07"]

1. d4 {[%clk 0:03:00]}  Nf6 {[%clk 0:02:59]} 2. c4 {[%clk 0:02:59]}  g6 {[%clk 0:02:59]} 3. Nc3 {[%clk 0:02:58]}  Bg7 {[%clk 0:02:58]} 4. e4 {[%clk 0:02:59]}  O-O {[%clk 0:02:59]} 5. Nf3 {[%clk 0:02:59]}  d6 {[%clk 0:03:00]} 6. h3 {[%clk 0:02:59]}  e5 {[%clk 0:02:56]} 7. d5 {[%clk 0:02:58]}  c6 {[%clk 0:02:42]} 8. Bd3 {[%clk 0:02:57]}  a6 {[%clk 0:02:32]} 9. O-O {[%clk 0:02:49]}  b5 {[%clk 0:02:32]} 10. b3 {[%clk 0:02:49]}  b4 {[%clk 0:02:31]} 11. Ne2 {[%clk 0:02:38]}  Nbd7 {[%clk 0:02:24]} 12. a3 {[%clk 0:02:37]}  Nc5 {[%clk 0:02:20]} 13. Bg5 {[%clk 0:02:03]}  bxa3 {[%clk 0:02:13]} 14. dxc6 {[%clk 0:01:50]}  h6 {[%clk 0:01:49]} 15. Bxf6 {[%clk 0:01:50]}  Bxf6 {[%clk 0:01:50]} 16. Rxa3 {[%clk 0:01:43]}  Qc7 {[%clk 0:01:44]} 17. Nc3 {[%clk 0:01:38]}  Qxc6 {[%clk 0:01:30]} 18. Nd5 {[%clk 0:01:38]}  Bd8 {[%clk 0:01:31]} 19. Bc2 {[%clk 0:01:20]}  Be6 {[%clk 0:01:25]} 20. b4 {[%clk 0:01:09]}  Nd7 {[%clk 0:01:24]} 21. b5 {[%clk 0:00:58]}  Qxc4 {[%clk 0:01:07]} 22. bxa6 {[%clk 0:00:57]}  Nc5 {[%clk 0:00:59]} 23. a7 {[%clk 0:00:50]}  f5 {[%clk 0:00:32]} 24. Ne3 {[%clk 0:00:45]}  Qb4 {[%clk 0:00:30]} 25. exf5 {[%clk 0:00:34]}  gxf5 {[%clk 0:00:29]} 26. Qc1 {[%clk 0:00:18]}  Bf6 {[%clk 0:00:26]} 27. Rd1 {[%clk 0:00:17]}  e4 {[%clk 0:00:25]} 28. Nd2 {[%clk 0:00:16]}  Bb2 {[%clk 0:00:20]} 29. Qb1 {[%clk 0:00:10]}  Bxa3 {[%clk 0:00:20]} 30. Qa1 {[%clk 0:00:09]}  Qb2 {[%clk 0:00:20]} 31. Ndc4 {[%clk 0:00:08]}  Qxa1 {[%clk 0:00:19]} 32. Rxa1 {[%clk 0:00:09]}  Bxc4 {[%clk 0:00:15]} 33. Nxc4 {[%clk 0:00:09]}  Bb4 {[%clk 0:00:15]} 34. Nxd6 {[%clk 0:00:10]}  Nd3 {[%clk 0:00:12]} 35. Bb3+ {[%clk 0:00:08]}  Kg7 {[%clk 0:00:12]} 36. Nb5 {[%clk 0:00:08]}  Bc5 {[%clk 0:00:11]} 37. Bc4 {[%clk 0:00:08]}  Nxf2 {[%clk 0:00:10]} 38. Nc7 {[%clk 0:00:05]}  Rxa7 {[%clk 0:00:07]} 39. Ne6+ {[%clk 0:00:05]}  Kg8 {[%clk 0:00:03]} 40. Rxa7 {[%clk 0:00:05]}  Bxa7 {[%clk 0:00:02]} 41. Nxf8+ {[%clk 0:00:04]}  Kxf8 {[%clk 0:00:03]} 42. Kf1 {[%clk 0:00:05]}  Nd3 {[%clk 0:00:02]} 43. Be6 {[%clk 0:00:05]}  f4 {[%clk 0:00:02]} 44. Bf5 {[%clk 0:00:05]}  Nc5 {[%clk 0:00:03]} 45. Ke2 {[%clk 0:00:06]}  Ke7 {[%clk 0:00:03]} 46. Kf2 {[%clk 0:00:06]}  Kf6 {[%clk 0:00:04]} 47. Bh7 {[%clk 0:00:06]}  Ke5 {[%clk 0:00:04]} 48. g3 {[%clk 0:00:07]}  Nd3+ {[%clk 0:00:04]} 49. Ke2 {[%clk 0:00:07]}  fxg3 {[%clk 0:00:04]} 50. Kf1 {[%clk 0:00:07]}  Nf4 {[%clk 0:00:05]} 51. Bxe4 {[%clk 0:00:06]}  Kxe4 {[%clk 0:00:05]} 52. h4 {[%clk 0:00:07]}  g2+ {[%clk 0:00:05]} 53. Ke1 {[%clk 0:00:07]}  g1=Q+ {[%clk 0:00:06]} 54. Kd2 {[%clk 0:00:08]}  Qd4+ {[%clk 0:00:07]} 0-1


[Site "https://www.chess.com"]

[Event "Titled Tuesday Blitz December 06 Early 2022"]
[White "Tsyhanchuk, Stanislav"]
[Black "Williams, Simon K"]
[WhiteFideId "13505130"]
[BlackFideId "404454"]
[WhiteElo "2173"]
[BlackElo "2468"]
[Result "0-1"]
[Round "05"]
[TimeControl "180+1"]
[Date "2022.12.07"]
[WhiteClock "0:00:01"]
[BlackClock "0:00:07"]

1. e4 {[%clk 0:02:59]}  c5 {[%clk 0:02:56]} 2. Nf3 {[%clk 0:02:57]}  d6 {[%clk 0:02:56]} 3. d4 {[%clk 0:02:56]}  cxd4 {[%clk 0:02:56]} 4. Nxd4 {[%clk 0:02:57]}  Nf6 {[%clk 0:02:56]} 5. Nc3 {[%clk 0:02:56]}  g6 {[%clk 0:02:56]} 6. Be3 {[%clk 0:02:53]}  Bg7 {[%clk 0:02:56]} 7. f3 {[%clk 0:02:24]}  Nc6 {[%clk 0:02:54]} 8. Qd2 {[%clk 0:02:16]}  Bd7 {[%clk 0:02:51]} 9. O-O-O {[%clk 0:02:15]}  Rc8 {[%clk 0:02:48]} 10. g4 {[%clk 0:02:11]}  Ne5 {[%clk 0:02:47]} 11. h4 {[%clk 0:02:04]}  O-O {[%clk 0:02:43]} 12. h5 {[%clk 0:02:03]}  Qa5 {[%clk 0:02:33]} 13. Kb1 {[%clk 0:01:38]}  Nxf3 {[%clk 0:02:22]} 14. Nxf3 {[%clk 0:01:29]}  Rxc3 {[%clk 0:02:21]} 15. Qxc3 {[%clk 0:01:18]}  Qxc3 {[%clk 0:02:21]} 16. bxc3 {[%clk 0:01:19]}  Bxg4 {[%clk 0:02:07]} 17. Bg2 {[%clk 0:00:51]}  Nxe4 {[%clk 0:02:06]} 18. Bd4 {[%clk 0:00:50]}  e5 {[%clk 0:01:55]} 19. Rh4 {[%clk 0:00:42]}  exd4 {[%clk 0:01:31]} 20. Rxg4 {[%clk 0:00:40]}  Nxc3+ {[%clk 0:01:31]} 21. Kc1 {[%clk 0:00:36]}  Nxd1 {[%clk 0:01:23]} 22. Kxd1 {[%clk 0:00:34]}  f5 {[%clk 0:01:21]} 23. Rg3 {[%clk 0:00:29]}  Be5 {[%clk 0:00:40]} 24. Nxe5 {[%clk 0:00:24]}  dxe5 {[%clk 0:00:39]} 25. hxg6 {[%clk 0:00:25]}  hxg6 {[%clk 0:00:40]} 26. Rxg6+ {[%clk 0:00:25]}  Kf7 {[%clk 0:00:40]} 27. Rh6 {[%clk 0:00:23]}  Ke7 {[%clk 0:00:35]} 28. Bxb7 {[%clk 0:00:22]}  Rb8 {[%clk 0:00:27]} 29. Kd2 {[%clk 0:00:14]}  e4 {[%clk 0:00:27]} 30. Bd5 {[%clk 0:00:05]}  Rb1 {[%clk 0:00:23]} 31. Rh7+ {[%clk 0:00:04]}  Kd6 {[%clk 0:00:23]} 32. Ba8 {[%clk 0:00:03]}  a5 {[%clk 0:00:17]} 33. Ra7 {[%clk 0:00:02]}  Rb5 {[%clk 0:00:15]} 34. Ra6+ {[%clk 0:00:03]}  Ke5 {[%clk 0:00:15]} 35. Bc6 {[%clk 0:00:03]}  Rc5 {[%clk 0:00:15]} 36. Ba4 {[%clk 0:00:03]}  f4 {[%clk 0:00:15]} 37. Bb3 {[%clk 0:00:04]}  f3 {[%clk 0:00:15]} 38. Re6+ {[%clk 0:00:04]}  Kf4 {[%clk 0:00:15]} 39. Rf6+ {[%clk 0:00:05]}  Rf5 {[%clk 0:00:14]} 40. Rxf5+ {[%clk 0:00:05]}  Kxf5 {[%clk 0:00:15]} 41. c4 {[%clk 0:00:05]}  Ke5 {[%clk 0:00:12]} 42. c5 {[%clk 0:00:05]}  e3+ {[%clk 0:00:09]} 43. Kd1 {[%clk 0:00:04]}  d3 {[%clk 0:00:09]} 44. Bc4 {[%clk 0:00:04]}  Kd4 {[%clk 0:00:08]} 45. Ba6 {[%clk 0:00:02]}  e2+ {[%clk 0:00:08]} 46. Ke1 {[%clk 0:00:01]}  Ke3 {[%clk 0:00:07]} 47. Bxd3 {[%clk 0:00:01]}  f2# {[%clk 0:00:07]} 0-1


[Site "https://www.chess.com"]

[Event "Titled Tuesday Blitz December 06 Early 2022"]
[White "Vaibhav, Suri"]
[Black "Shapiro, Daniel"]
[WhiteFideId "5045185"]
[BlackFideId "2001780"]
[WhiteElo "2510"]
[BlackElo "2297"]
[Result "1-0"]
[Round "05"]
[TimeControl "180+1"]
[Date "2022.12.07"]
[WhiteClock "0:00:43"]
[BlackClock "0:00:33"]

1. Nf3 {[%clk 0:02:53]}  Nf6 {[%clk 0:02:58]} 2. b3 {[%clk 0:02:51]}  d6 {[%clk 0:02:57]} 3. d4 {[%clk 0:02:50]}  g6 {[%clk 0:02:50]} 4. Nbd2 {[%clk 0:02:49]}  Bg7 {[%clk 0:02:47]} 5. Bb2 {[%clk 0:02:50]}  O-O {[%clk 0:02:46]} 6. e3 {[%clk 0:02:50]}  e5 {[%clk 0:02:34]} 7. dxe5 {[%clk 0:02:49]}  Ng4 {[%clk 0:02:34]} 8. Nc4 {[%clk 0:02:44]}  Nc6 {[%clk 0:02:34]} 9. exd6 {[%clk 0:02:41]}  Bxb2 {[%clk 0:02:30]} 10. Nxb2 {[%clk 0:02:42]}  Qf6 {[%clk 0:02:30]} 11. Nc4 {[%clk 0:02:28]}  Rd8 {[%clk 0:02:21]} 12. h3 {[%clk 0:02:17]}  b5 {[%clk 0:02:20]} 13. hxg4 {[%clk 0:02:12]}  bxc4 {[%clk 0:02:19]} 14. Bxc4 {[%clk 0:02:11]}  Rxd6 {[%clk 0:02:16]} 15. Qc1 {[%clk 0:02:06]}  Qc3+ {[%clk 0:02:06]} 16. Kf1 {[%clk 0:02:00]}  Bxg4 {[%clk 0:01:54]} 17. Ng5 {[%clk 0:01:54]}  Rd1+ {[%clk 0:01:32]} 18. Qxd1 {[%clk 0:01:52]}  Bxd1 {[%clk 0:01:32]} 19. Bxf7+ {[%clk 0:01:20]}  Kf8 {[%clk 0:01:28]} 20. Rxd1 {[%clk 0:01:14]}  Rd8 {[%clk 0:01:13]} 21. Ne6+ {[%clk 0:01:03]}  Kxf7 {[%clk 0:01:09]} 22. Nxd8+ {[%clk 0:01:03]}  Nxd8 {[%clk 0:01:09]} 23. Rxh7+ {[%clk 0:00:52]}  Kg8 {[%clk 0:01:07]} 24. Re7 {[%clk 0:00:46]}  Nc6 {[%clk 0:00:36]} 25. Rxc7 {[%clk 0:00:44]}  Qxc2 {[%clk 0:00:33]} 26. Rd8+ {[%clk 0:00:43]} 1-0


[Site "https://www.chess.com"]

[Event "Titled Tuesday Blitz December 06 Early 2022"]
[White "Vidit, Santosh Gujrathi"]
[Black "Concio, Michael Jr."]
[WhiteFideId "5029465"]
[BlackFideId "5217873"]
[WhiteElo "2669"]
[BlackElo "2263"]
[Result "1-0"]
[Round "05"]
[TimeControl "180+1"]
[Date "2022.12.06"]
[WhiteClock "0:01:26"]
[BlackClock "0:00:02"]

1. e4 {[%clk 0:03:00]}  e5 {[%clk 0:02:59]} 2. Nf3 {[%clk 0:03:00]}  Nc6 {[%clk 0:03:00]} 3. Bb5 {[%clk 0:03:00]}  Nf6 {[%clk 0:03:00]} 4. d3 {[%clk 0:02:59]}  d6 {[%clk 0:03:00]} 5. c3 {[%clk 0:02:57]}  Bd7 {[%clk 0:03:00]} 6. O-O {[%clk 0:02:56]}  g6 {[%clk 0:03:00]} 7. Nbd2 {[%clk 0:02:55]}  Bg7 {[%clk 0:03:00]} 8. Re1 {[%clk 0:02:55]}  O-O {[%clk 0:03:01]} 9. Nf1 {[%clk 0:02:54]}  Nh5 {[%clk 0:03:01]} 10. Bg5 {[%clk 0:02:40]}  Qe8 {[%clk 0:02:57]} 11. Ne3 {[%clk 0:02:36]}  a6 {[%clk 0:02:10]} 12. Bc4 {[%clk 0:02:29]}  Ne7 {[%clk 0:01:44]} 13. d4 {[%clk 0:02:27]}  Kh8 {[%clk 0:01:31]} 14. Qd2 {[%clk 0:02:23]}  h6 {[%clk 0:01:25]} 15. Bh4 {[%clk 0:02:23]}  Nf4 {[%clk 0:01:24]} 16. Rad1 {[%clk 0:02:21]}  Bc6 {[%clk 0:01:11]} 17. Nd5 {[%clk 0:02:15]}  Nexd5 {[%clk 0:00:45]} 18. exd5 {[%clk 0:02:15]}  Bb5 {[%clk 0:00:28]} 19. Bxb5 {[%clk 0:02:01]}  axb5 {[%clk 0:00:18]} 20. dxe5 {[%clk 0:02:01]}  dxe5 {[%clk 0:00:17]} 21. Nxe5 {[%clk 0:01:54]}  Bxe5 {[%clk 0:00:07]} 22. Bf6+ {[%clk 0:01:54]}  Bxf6 {[%clk 0:00:06]} 23. Rxe8 {[%clk 0:01:54]}  Raxe8 {[%clk 0:00:03]} 24. Qxf4 {[%clk 0:01:54]}  Be5 {[%clk 0:00:03]} 25. Qxh6+ {[%clk 0:01:53]}  Kg8 {[%clk 0:00:03]} 26. a3 {[%clk 0:01:46]}  Rd8 {[%clk 0:00:02]} 27. Kf1 {[%clk 0:01:39]}  Rfe8 {[%clk 0:00:02]} 28. Re1 {[%clk 0:01:36]}  Bf6 {[%clk 0:00:02]} 29. Rxe8+ {[%clk 0:01:32]}  Rxe8 {[%clk 0:00:03]} 30. Qf4 {[%clk 0:01:32]}  Be5 {[%clk 0:00:03]} 31. Qb4 {[%clk 0:01:31]}  c6 {[%clk 0:00:03]} 32. Qc5 {[%clk 0:01:26]}  cxd5 {[%clk 0:00:02]} 1-0


[Site "https://www.chess.com"]

[Event "Titled Tuesday Blitz December 06 Early 2022"]
[White "Yilmaz, Mustafa"]
[Black "Sadhwani, Raunak"]
[WhiteFideId "6302718"]
[BlackFideId "35093487"]
[WhiteElo "2564"]
[BlackElo "2657"]
[Result "1/2-1/2"]
[Round "05"]
[TimeControl "180+1"]
[Date "2022.12.06"]
[WhiteClock "0:00:10"]
[BlackClock "0:00:08"]

1. d4 {[%clk 0:02:57]}  Nf6 {[%clk 0:02:57]} 2. c4 {[%clk 0:02:57]}  e6 {[%clk 0:02:57]} 3. Nf3 {[%clk 0:02:57]}  d5 {[%clk 0:02:57]} 4. Nc3 {[%clk 0:02:57]}  Bb4 {[%clk 0:02:54]} 5. Bg5 {[%clk 0:02:57]}  h6 {[%clk 0:02:53]} 6. Bxf6 {[%clk 0:02:57]}  Qxf6 {[%clk 0:02:54]} 7. Qa4+ {[%clk 0:02:55]}  Nc6 {[%clk 0:02:54]} 8. e3 {[%clk 0:02:56]}  O-O {[%clk 0:02:49]} 9. Rc1 {[%clk 0:02:55]}  Rd8 {[%clk 0:02:47]} 10. Be2 {[%clk 0:02:47]}  dxc4 {[%clk 0:02:46]} 11. Qb5 {[%clk 0:02:45]}  e5 {[%clk 0:02:45]} 12. d5 {[%clk 0:02:27]}  Bxc3+ {[%clk 0:02:38]} 13. Rxc3 {[%clk 0:02:26]}  Ne7 {[%clk 0:02:20]} 14. Bxc4 {[%clk 0:01:40]}  Bg4 {[%clk 0:02:18]} 15. Nd2 {[%clk 0:01:12]}  Qb6 {[%clk 0:01:42]} 16. e4 {[%clk 0:01:06]}  c6 {[%clk 0:01:33]} 17. dxc6 {[%clk 0:00:57]}  bxc6 {[%clk 0:01:08]} 18. Qxb6 {[%clk 0:00:54]}  axb6 {[%clk 0:01:09]} 19. f3 {[%clk 0:00:48]}  Bc8 {[%clk 0:01:05]} 20. a3 {[%clk 0:00:42]}  Ng6 {[%clk 0:01:03]} 21. g3 {[%clk 0:00:40]}  b5 {[%clk 0:00:33]} 22. Bd3 {[%clk 0:00:20]}  b4 {[%clk 0:00:23]} 23. axb4 {[%clk 0:00:15]}  Ra2 {[%clk 0:00:24]} 24. Ke2 {[%clk 0:00:10]}  Rxb2 {[%clk 0:00:23]} 25. Rb1 {[%clk 0:00:11]}  Ra2 {[%clk 0:00:19]} 26. Rc2 {[%clk 0:00:08]}  Ra3 {[%clk 0:00:16]} 27. Rb3 {[%clk 0:00:07]}  Ra8 {[%clk 0:00:11]} 28. Rxc6 {[%clk 0:00:07]}  Nf8 {[%clk 0:00:11]} 29. b5 {[%clk 0:00:07]}  Ne6 {[%clk 0:00:11]} 30. Ke3 {[%clk 0:00:05]}  Nd4 {[%clk 0:00:11]} 31. Rbc3 {[%clk 0:00:05]}  Nxc6 {[%clk 0:00:11]} 32. bxc6 {[%clk 0:00:06]}  Be6 {[%clk 0:00:11]} 33. Nc4 {[%clk 0:00:05]}  Rac8 {[%clk 0:00:07]} 34. Nxe5 {[%clk 0:00:05]}  Rd6 {[%clk 0:00:07]} 35. Bb5 {[%clk 0:00:02]}  Rc7 {[%clk 0:00:06]} 36. Nd3 {[%clk 0:00:02]}  Bc8 {[%clk 0:00:03]} 37. Nc5 {[%clk 0:00:03]}  Rd8 {[%clk 0:00:03]} 38. Na6 {[%clk 0:00:02]}  Ra7 {[%clk 0:00:02]} 39. Nb4 {[%clk 0:00:02]}  Kf8 {[%clk 0:00:02]} 40. Nd5 {[%clk 0:00:03]}  Rd6 {[%clk 0:00:02]} 41. Nb6 {[%clk 0:00:03]}  Rc7 {[%clk 0:00:02]} 42. e5 {[%clk 0:00:03]}  Rd8 {[%clk 0:00:02]} 43. f4 {[%clk 0:00:04]}  Be6 {[%clk 0:00:02]} 44. Rd3 {[%clk 0:00:04]}  Rb8 {[%clk 0:00:01]} 45. Nd7+ {[%clk 0:00:05]}  Bxd7 {[%clk 0:00:01]} 46. cxd7 {[%clk 0:00:06]}  Ke7 {[%clk 0:00:02]} 47. Rd5 {[%clk 0:00:06]}  Kd8 {[%clk 0:00:02]} 48. f5 {[%clk 0:00:06]}  Rb6 {[%clk 0:00:03]} 49. h4 {[%clk 0:00:05]}  Rcb7 {[%clk 0:00:04]} 50. Ba4 {[%clk 0:00:04]}  Ra7 {[%clk 0:00:04]} 51. Bb5 {[%clk 0:00:05]}  Ra5 {[%clk 0:00:04]} 52. Bc4 {[%clk 0:00:05]}  Rxd5 {[%clk 0:00:04]} 53. Bxd5 {[%clk 0:00:06]}  Kxd7 {[%clk 0:00:04]} 54. Bxf7 {[%clk 0:00:06]}  Ke7 {[%clk 0:00:05]} 55. Bd5 {[%clk 0:00:07]}  Rb5 {[%clk 0:00:06]} 56. Kd4 {[%clk 0:00:06]}  Rb4+ {[%clk 0:00:06]} 57. Bc4 {[%clk 0:00:07]}  Ra4 {[%clk 0:00:06]} 58. g4 {[%clk 0:00:07]}  Ra3 {[%clk 0:00:06]} 59. g5 {[%clk 0:00:08]}  hxg5 {[%clk 0:00:06]} 60. hxg5 {[%clk 0:00:08]}  Rf3 {[%clk 0:00:07]} 61. f6+ {[%clk 0:00:09]}  gxf6 {[%clk 0:00:07]} 62. gxf6+ {[%clk 0:00:09]}  Rxf6 {[%clk 0:00:07]} 63. exf6+ {[%clk 0:00:10]}  Kxf6 {[%clk 0:00:08]} 1/2-1/2


[Site "https://www.chess.com"]

[Event "Titled Tuesday Blitz December 06 Early 2022"]
[White "Yuan, Qingyu"]
[Black "Vifleemskaia, Svetlana"]
[WhiteFideId "8609772"]
[BlackFideId "4129490"]
[WhiteElo "2359"]
[BlackElo "1930"]
[Result "1-0"]
[Round "05"]
[TimeControl "180+1"]
[Date "2022.12.07"]
[WhiteClock "0:00:10"]
[BlackClock "0:00:01"]

1. e4 {[%clk 0:02:33]}  e5 {[%clk 0:02:58]} 2. Nf3 {[%clk 0:02:32]}  Nc6 {[%clk 0:02:57]} 3. Bb5 {[%clk 0:02:32]}  a6 {[%clk 0:02:57]} 4. Ba4 {[%clk 0:02:32]}  Nf6 {[%clk 0:02:56]} 5. O-O {[%clk 0:02:33]}  Be7 {[%clk 0:02:55]} 6. Re1 {[%clk 0:02:33]}  b5 {[%clk 0:02:55]} 7. Bb3 {[%clk 0:02:34]}  d6 {[%clk 0:02:55]} 8. c3 {[%clk 0:02:33]}  O-O {[%clk 0:02:54]} 9. h3 {[%clk 0:02:34]}  Nd7 {[%clk 0:02:53]} 10. d4 {[%clk 0:02:34]}  Bf6 {[%clk 0:02:52]} 11. Be3 {[%clk 0:02:33]}  Na5 {[%clk 0:02:50]} 12. Bc2 {[%clk 0:02:31]}  Nc4 {[%clk 0:02:50]} 13. Bc1 {[%clk 0:02:31]}  c5 {[%clk 0:02:49]} 14. Nbd2 {[%clk 0:02:30]}  cxd4 {[%clk 0:02:29]} 15. Nxc4 {[%clk 0:02:23]}  bxc4 {[%clk 0:02:27]} 16. cxd4 {[%clk 0:02:24]}  Nb6 {[%clk 0:02:20]} 17. d5 {[%clk 0:02:23]}  Bd7 {[%clk 0:02:15]} 18. Be3 {[%clk 0:02:23]}  Rc8 {[%clk 0:02:09]} 19. Rc1 {[%clk 0:02:22]}  h6 {[%clk 0:02:04]} 20. Qd2 {[%clk 0:02:21]}  Be7 {[%clk 0:01:58]} 21. b3 {[%clk 0:01:50]}  cxb3 {[%clk 0:01:56]} 22. axb3 {[%clk 0:01:44]}  Bb5 {[%clk 0:01:54]} 23. Bd3 {[%clk 0:01:44]}  f5 {[%clk 0:01:33]} 24. exf5 {[%clk 0:01:33]}  Nxd5 {[%clk 0:01:26]} 25. Bxb5 {[%clk 0:01:17]}  Nxe3 {[%clk 0:01:25]} 26. Bxa6 {[%clk 0:00:55]}  Rxc1 {[%clk 0:01:24]} 27. Rxc1 {[%clk 0:00:56]}  Nxf5 {[%clk 0:01:23]} 28. b4 {[%clk 0:00:52]}  Qb6 {[%clk 0:00:51]} 29. Bd3 {[%clk 0:00:45]}  Nd4 {[%clk 0:00:47]} 30. Bc4+ {[%clk 0:00:39]}  Kh8 {[%clk 0:00:44]} 31. Nxd4 {[%clk 0:00:39]}  exd4 {[%clk 0:00:38]} 32. Rb1 {[%clk 0:00:33]}  d3 {[%clk 0:00:35]} 33. Bxd3 {[%clk 0:00:31]}  d5 {[%clk 0:00:32]} 34. b5 {[%clk 0:00:25]}  Bc5 {[%clk 0:00:31]} 35. Rf1 {[%clk 0:00:25]}  Bd4 {[%clk 0:00:26]} 36. Qe2 {[%clk 0:00:25]}  Qf6 {[%clk 0:00:21]} 37. Bc2 {[%clk 0:00:24]}  Qf4 {[%clk 0:00:19]} 38. Bb1 {[%clk 0:00:18]}  g5 {[%clk 0:00:11]} 39. Qd3 {[%clk 0:00:17]}  Rf7 {[%clk 0:00:08]} 40. Kh1 {[%clk 0:00:14]}  Bxf2 {[%clk 0:00:06]} 41. Qxd5 {[%clk 0:00:14]}  Kg7 {[%clk 0:00:05]} 42. Qd3 {[%clk 0:00:12]}  Qf6 {[%clk 0:00:03]} 43. Qh7+ {[%clk 0:00:12]}  Kf8 {[%clk 0:00:03]} 44. Qc2 {[%clk 0:00:13]}  Kg7 {[%clk 0:00:03]} 45. Ba2 {[%clk 0:00:10]}  Rf8 {[%clk 0:00:01]} 46. Qb3 {[%clk 0:00:10]}  Qf5 {[%clk 0:00:01]} 47. b6 {[%clk 0:00:10]} 1-0


[Site "https://www.chess.com"]